[Event "17th Paracin Open 2024"]
[Site "Paracin"]
[Date "2024.07.06"]
[Round "4.1"]
[White "Fier, Alexandr"]
[Black "Ben Ari, Yannay"]
[Result "1/2-1/2"]
[ECO "E48"]
[WhiteElo "2602"]
[BlackElo "2443"]
[Annotator "TA"]
[PlyCount "71"]
[EventDate "2024.07.02"]
[EventType "swiss"]
[EventCountry "SRB"]
[SourceTitle "playchess.com"]
[Source "ChessBase"]
[SourceQuality "1"]
[TimeControl "5400+30"]

{[%evp 11,71,9,9,-8,-12,-1,0,-6,0,-16,-7,-8,10,16,31,0,10,0,37,0,17,0,0,0,0,0,0,-14,0,-48,0,-41,-42,-62,-10,-5,-4,-45,0,-45,0,-8,0,0,-5,-6,0,0,0,0,0,0,0,0,0,0,0,0,0,0,0,0]} 1. d4 {[%emt 0:00:03]} Nf6 {[%emt 0:09:27]} 2. c4 {[%emt 0:00:05]} e6 {[%emt 0:00:09]} 3. Nc3 {[%emt 0:00:04]} Bb4 {[%emt 0:00:06]} 4. e3 {[%emt 0:00:03]} O-O {[%emt 0:00:10]} 5. Bd3 {[%emt 0:00:03]} d5 {[%emt 0:00:08]} 6. cxd5 {[%emt 0:00:04]} exd5 {[%emt 0:00:06]} 7. a3 {[%emt 0:00:03]} Bd6 {[%emt 0:00:27]} 8. Qc2 {[%emt 0:00:41]} b6 {[%emt 0:02:30]} 9. Nb5 {[%emt 0:04:00]} c5 {[%emt 0:01:02]} 10. Nxd6 {[%emt 0:02:11]} Qxd6 {[%emt 0:00:03]} 11. b3 {[%emt 0:05:41]} Nc6 {[%emt 0:10:30]} 12. Ne2 {[%emt 0:00:48]} Bg4 {[%emt 0:03:52]} 13. f3 {[%emt 0:01:36]} Bh5 {[%emt 0:03:32]} 14. O-O {[%emt 0:03:26]} Rfe8 {[%emt 0:11:15]} 15. Bd2 {[%emt 0:03:12] Rac1 would now be deadly.} cxd4 {[%emt 0:05:14]} 16. Nxd4 {[%emt 0:01:57]} Nxd4 {[%emt 0:05:29]} 17. exd4 {[%emt 0:00:04]} Bg6 {[%emt 0:01:07]} 18. Bxg6 {[%emt 0:01:18]} hxg6 {[%emt 0:00:02]} 19. Qd3 {[%emt 0:00:05]} Nh5 {[%emt 0:01:13]} 20. Bb4 {[%emt 0:08:29]} (20. a4 $11) 20... Qd7 {[%emt 0:06:25]} (20... Nf4 $15 21. Bxd6 Nxd3) 21. Rae1 {[%emt 0:02:35]} Nf4 {[%emt 0:05:39]} 22. Qd2 {[%emt 0:00:09]} Qf5 {[%emt 0:01:21]} (22... g5 $15 23. Qd1 Rac8) 23. Bd6 $11 {[%emt 0:00:22]} g5 {[%emt 0:02:06]} 24. h4 {[%emt 0:02:02]} Ne6 {[%emt 0:05:39]} 25. hxg5 {[%emt 0:10:05]} Nxg5 {[%emt 0:01:36]} (25... Qxg5 {simplifies} 26. Qxg5 Nxg5 27. Rxe8+ Rxe8 28. a4 Ne6) 26. Bf4 {[%emt 0:02:35] The position is equal.} Rxe1 {[%emt 0:01:45]} 27. Rxe1 {[%emt 0:09:38]} Ne6 {[%emt 0:00:02]} 28. Be5 {[%emt 0:01:44]} Rc8 {[%emt 0:08:01]} 29. Rc1 {[%emt 0:00:04] Prevents Rc2} Rxc1+ {[%emt 0:00:17]} 30. Qxc1 {[%emt 0:00:02][%mdl 4096] Endgame. KQB-KQN} Qd3 {[%emt 0:03:15]} 31. Qc8+ {[%emt 0:00:20]} Kh7 {[%emt 0:00:07]} 32. Qd7 {[%emt 0:00:02][%csl LRa7,LRd5,LRf7]} Qe3+ {[%emt 0:03:39]} 33. Kh2 {[%emt 0:01:47]} Qh6+ {[%emt 0:00:29]} 34. Kg1 {[%emt 0:00:05]} Qe3+ {[%emt 0:00:05]} 35. Kh2 {[%emt 0:00:02]} Qh6+ {[%emt 0:00:07]} 36. Kg1 {[%emt 0:00:03] Weighted Error Value: White=0.14 (very precise) /Black=0.11 (very precise) .  Mistake:       	White=1     	Black=2      Inaccurate:     	White=4     	Black=2      OK:         	White=9     	Black=9      Best:        	White=2     	Black=1} 1/2-1/2

[Event "17th Paracin Open 2024"]
[Site "Paracin"]
[Date "2024.07.06"]
[Round "4.2"]
[White "Mardov, Dimitar"]
[Black "Wang, Yanbin"]
[Result "1-0"]
[ECO "D38"]
[WhiteElo "2484"]
[BlackElo "2423"]
[Annotator "TA"]
[PlyCount "81"]
[EventDate "2024.07.02"]
[EventType "swiss"]
[EventCountry "SRB"]
[SourceTitle "playchess.com"]
[Source "ChessBase"]
[SourceQuality "1"]
[TimeControl "5400+30"]

{[%evp 11,81,28,7,0,0,16,25,21,16,7,12,6,20,25,12,0,0,0,2,7,17,11,46,44,129,125,173,181,186,186,191,192,188,188,183,188,341,334,338,322,327,358,339,339,320,210,224,219,236,222,263,266,249,243,382,382,504,497,481,473,483,464,1191,1191,29983,29984,29984,29984,29992,29993,29997,64]} 1. d4 {[%emt 0:00:02]} Nf6 {[%emt 0:00:05]} 2. Nf3 {[%emt 0:00:04]} e6 {[%emt 0:00:09]} 3. c4 {[%emt 0:00:13]} d5 {[%emt 0:00:05]} 4. Nc3 {[%emt 0:00:19]} Bb4 {[%emt 0:00:10]} 5. Qa4+ {[%emt 0:02:31]} Nc6 {[%emt 0:00:04][%cal Bb8c6,Bc6e5,Be5f3][%mdl 32]} 6. e3 {[%emt 0:00:18]} O-O {[%emt 0:00:10]} 7. Qc2 {[%emt 0:01:09]} Re8 {[%emt 0:00:18]} 8. Bd2 {[%emt 0:01:34]} Bf8 {[%emt 0:01:24]} 9. a3 {[%emt 0:01:22] White has an edge.} e5 {[%emt 0:06:48]} 10. dxe5 {[%emt 0:03:37]} Nxe5 {[%emt 0:00:26]} 11. cxd5 {[%emt 0:01:55]} Nxf3+ {[%emt 0:06:23]} 12. gxf3 {[%emt 0:00:21]} Nxd5 {[%emt 0:00:02]} 13. O-O-O {[%emt 0:03:05]} Nxc3 {[%emt 0:02:46]} 14. Bxc3 {[%emt 0:01:38]} Qh4 {[%emt 0:00:14]} 15. Bd3 {[%emt 0:13:41]} (15. Rg1 {feels hotter.} Be6 16. Rg3 Rad8 17. Bd3) 15... Be6 {[%emt 0:05:24]} 16. f4 {[%emt 0:04:31]} (16. Rhg1 {with more complications.} Rad8 17. Rg3 Rd7 18. Rdg1) 16... Bg4 {[%emt 0:07:06]} 17. Rde1 {[%emt 0:08:00] aiming for Rhg1.} Bd7 {[%emt 0:30:51]} (17... Be6 $14) 18. Rhg1 $1 $16 {[%emt 0:05:15]} Kh8 {[%emt 0:01:27]} (18... Re6 $16) 19. Rg3 $1 $18 {[%emt 0:03:48]} Rad8 {[%emt 0:18:29][%cal Of7f6]} 20. Reg1 {[%emt 0:01:51][%cal Rg3g7] White wants to mate with Rxg7.} f6 {[%emt 0:03:32][%cal Od7e6]} 21. Bf5 {[%emt 0:03:08]} c6 {[%emt 0:01:40]} 22. Bxd7 {[%emt 0:12:59]} Rxd7 {[%emt 0:00:01]} 23. Qf5 {[%emt 0:00:56]} Rd6 {[%emt 0:02:13]} (23... Rd5 24. Qxf6 Qxf6 (24... Qxg3 $2 25. Rxg3 gxf6 26. Bxf6+ $18) 25. Bxf6 Rd7) 24. Rh3 {[%emt 0:01:44]} Rd5 {[%emt 0:00:06] [#]} 25. Be5 $1 {[%emt 0:03:24]} Qxh3 {[%emt 0:04:04]} 26. Qxh3 {[%emt 0:00:10]} fxe5 {[%emt 0:00:04]} 27. Qh5 {[%emt 0:03:03]} Re7 {[%emt 0:01:18]} 28. f5 $40 {[%emt 0:02:49][%cal Bf4f5,Bf5f6][%mdl 160] White goes for the king.} e4 {[%emt 0:01:12]} 29. Rg4 {[%emt 0:04:53] Threatens to win with Rh4.} Kg8 {[%emt 0:00:51]} 30. Rf4 {[%emt 0:00:55]} Rc5+ {[%emt 0:02:38]} 31. Kb1 {[%emt 0:00:27]} Rf7 {[%emt 0:00:58]} 32. Qg4 {[%emt 0:01:31][%cal Of5f6] Hoping for f6!} (32. Rxe4 $6 Rcxf5 33. Qg4 Rxf2 $16) 32... Bd6 {[%emt 0:01:02] [#]} (32... Rf6 $142 33. h4 (33. Rxe4 Rcxf5 34. f4 g6 $18) 33... Bd6 34. Rxe4 Bf8) 33. f6 $1 {[%emt 0:02:21]} Rb5 {[%emt 0:04:13]} (33... Bxf4 $2 34. Qc8+ Rf8 35. Qe6+ Kh8 36. Qe7 $18 (36. exf4 gxf6 37. Qe7 Kg8 $18) (36. fxg7+ Kxg7 37. Qe7+ Rf7 $18)) (33... g6 34. Qc8+) 34. Qc8+ {[%emt 0:03:47]} Bf8 {[%emt 0:00:09]} 35. Qe6 {[%emt 0:00:35] Intending fxg7 and mate.} ({Less strong is} 35. Rxe4 Rxf6 36. f4 Rf7 $18) 35... g6 {[%emt 0:00:36]} 36. Qxe4 {[%emt 0:02:24] And now Qe8 would win.} (36. Rxe4 Rf5 37. Rf4 Rxf4 38. exf4 a6) 36... Bxa3 {[%emt 0:00:37]} (36... Rd5 $142 37. Qc4 Rh5) 37. Qe8+ {[%emt 0:01:42]} Rf8 {[%emt 0:00:47]} 38. Qe6+ {[%emt 0:00:12] White mates.} Rf7 {[%emt 0:00:35]} 39. Rd4 {[%emt 0:00:50]} Rxb2+ {[%emt 0:00:31]} 40. Ka1 {[%emt 0:00:06]} Rxf2 {[%emt 0:00:31] [#]} 41. Rd8+ $1 {[%emt 0:00:08] Weighted Error Value: White=0.04 (flawless) /Black=0.42.  Mistake:       	---       	Black=5      Inaccurate:     	White=1     	Black=3      OK:         	White=15    	Black=12     Best:        	White=4     	Black=5      Strong:       	White=3     	---} 1-0

[Event "17th Paracin Open 2024"]
[Site "Paracin"]
[Date "2024.07.06"]
[Round "4.3"]
[White "Bryakin, Mikhail"]
[Black "Xu, Junwei"]
[Result "0-1"]
[ECO "E18"]
[WhiteElo "2469"]
[BlackElo "2138"]
[Annotator "RC"]
[PlyCount "112"]
[EventDate "2024.07.02"]
[EventType "swiss"]
[EventCountry "SRB"]
[SourceTitle "playchess.com"]
[Source "ChessBase"]
[SourceQuality "1"]
[TimeControl "5400+30"]

1. d4 {[%emt 0:00:09]} Nf6 {[%emt 0:00:02]} 2. c4 {[%emt 0:00:11]} e6 {[%emt 0:00:04]} 3. Nf3 {[%emt 0:00:09]} b6 {[%emt 0:00:25]} 4. g3 {[%emt 0:00:09]} Bb7 {[%emt 0:00:04]} 5. Bg2 {[%emt 0:00:09]} Be7 {[%emt 0:00:05]} 6. Nc3 {[%emt 0:00:22]} Ne4 {[%emt 0:03:54]} 7. Bd2 {[%emt 0:00:44]} O-O {[%emt 0:01:54]} 8. O-O {[%emt 0:03:06]} d5 {[%emt 0:00:37]} 9. cxd5 {[%emt 0:02:00]} exd5 {[%emt 0:00:11]} 10. Rc1 {[%emt 0:00:55]} c5 {[%emt 0:02:01]} 11. dxc5 {[%emt 0:03:37]} Nxc5 {[%emt 0:05:44]} 12. Be3 {[%emt 0:04:32]} Nba6 {[%emt 0:01:52]} 13. Nd4 {[%emt 0:08:06]} Qd7 {[%emt 0:02:36]} 14. Qc2 {[%emt 0:02:24]} Rfd8 {[%emt 0:03:00]} 15. Nf5 {[%emt 0:05:33]} Bf6 {[%emt 0:06:11]} 16. Bd4 {[%emt 0:08:21]} Bxd4 {[%emt 0:04:49]} 17. Nxd4 {[%emt 0:00:10]} Rac8 {[%emt 0:00:33]} 18. Qf5 {[%emt 0:03:23]} Ne6 {[%emt 0:07:19]} 19. Nxe6 {[%emt 0:20:15]} fxe6 {[%emt 0:00:05]} 20. Qe5 {[%emt 0:00:25]} Rc5 {[%emt 0:00:42]} 21. Bh3 {[%emt 0:07:52]} Re8 {[%emt 0:03:00]} 22. Rfd1 {[%emt 0:02:57]} Nb8 {[%emt 0:05:44]} 23. b4 {[%emt 0:08:27]} Rc4 {[%emt 0:01:36]} 24. b5 {[%emt 0:03:49]} Qe7 {[%emt 0:04:28]} 25. Nb1 {[%emt 0:03:52]} Rxc1 {[%emt 0:03:09]} 26. Rxc1 {[%emt 0:00:09]} Nd7 {[%emt 0:00:05]} 27. Qh5 {[%emt 0:04:38]} Nf6 {[%emt 0:02:54]} 28. Qe5 {[%emt 0:00:15]} Nd7 {[%emt 0:00:17]} 29. Qe3 {[%emt 0:01:17]} Qd6 {[%emt 0:02:23]} 30. Qa3 {[%emt 0:00:39]} Nc5 {[%emt 0:02:31]} 31. Bg2 {[%emt 0:01:38]} a6 {[%emt 0:03:31]} 32. Nc3 {[%emt 0:01:14]} Rc8 {[%emt 0:01:36]} 33. bxa6 {[%emt 0:01:28]} Bxa6 {[%emt 0:00:10]} 34. Qb2 {[%emt 0:01:56]} Qc6 {[%emt 0:01:54]} 35. Rb1 {[%emt 0:00:54]} Nd7 {[%emt 0:00:30]} 36. Qa3 {[%emt 0:01:02]} Bc4 {[%emt 0:02:57]} 37. Qe7 {[%emt 0:00:41]} Nf8 {[%emt 0:02:56]} 38. h4 {[%emt 0:00:38]} Qc5 {[%emt 0:02:45]} 39. Qb7 {[%emt 0:00:12]} b5 {[%emt 0:02:24]} 40. Nxb5 {[%emt 0:01:14]} Bxe2 {[%emt 0:00:53]} 41. a4 {[%emt 0:00:06]} Rd8 {[%emt 0:01:21]} 42. Re1 {[%emt 0:01:17]} Bc4 {[%emt 0:01:08]} 43. Bf1 {[%emt 0:00:28]} Rd7 {[%emt 0:00:14]} 44. Qb8 {[%emt 0:00:14]} Rf7 {[%emt 0:00:07]} 45. Re3 {[%emt 0:00:48]} Bxf1 {[%emt 0:00:09]} 46. Nd6 {[%emt 0:00:12]} d4 {[%emt 0:02:56]} 47. Re1 {[%emt 0:00:15]} Bh3 {[%emt 0:00:08]} 48. Kh2 {[%emt 0:00:58]} Rd7 {[%emt 0:00:29]} 49. Ne4 {[%emt 0:00:27]} Qf5 {[%emt 0:00:19]} 50. f3 {[%emt 0:00:13]} d3 {[%emt 0:00:51]} 51. Nd2 {[%emt 0:00:30]} Qa5 {[%emt 0:00:30]} 52. Qf4 {[%emt 0:00:19]} Bf5 {[%emt 0:00:09]} 53. h5 {[%emt 0:00:35]} Rd4 {[%emt 0:00:16]} 54. Qe3 {[%emt 0:00:17]} Rxa4 {[%emt 0:00:27]} 55. g4 {[%emt 0:00:12]} Bxg4 {[%emt 0:00:38]} 56. fxg4 {[%emt 0:00:43]} Rxg4 {[%emt 0:00:06]} 0-1

[Event "17th Paracin Open 2024"]
[Site "Paracin"]
[Date "2024.07.06"]
[Round "4.4"]
[White "Akbas, Umut Ata"]
[Black "Safarli, Eltaj"]
[Result "1/2-1/2"]
[ECO "E32"]
[WhiteElo "2437"]
[BlackElo "2595"]
[Annotator "TA"]
[PlyCount "32"]
[EventDate "2024.07.02"]
[EventType "swiss"]
[EventCountry "SRB"]
[SourceTitle "playchess.com"]
[Source "ChessBase"]
[SourceQuality "1"]
[TimeControl "5400+30"]

{[%evp 14,32,41,32,35,24,43,40,43,43,54,44,48,40,65,0,56,0,87,0,71]} 1. d4 {[%emt 0:03:17]} Nf6 {[%emt 0:00:45]} 2. c4 {[%emt 0:00:11]} e6 {[%emt 0:00:10]} 3. Nc3 {[%emt 0:00:08]} Bb4 {[%emt 0:00:06]} 4. Qc2 {[%emt 0:00:08]} c5 {[%emt 1:31:29]} 5. dxc5 {[%emt 0:01:10]} Bxc5 {[%emt 0:00:00]} 6. Nf3 {[%emt 0:00:34]} O-O {[%emt 0:00:00]} 7. Bg5 {[%emt 0:00:13]} h6 {[%emt 0:00:00]} 8. Bh4 {[%emt 0:00:06]} Be7 {[%emt 0:00:00]} 9. e3 {[%emt 0:00:06]} Nc6 {[%emt 0:00:00]} 10. Be2 {[%emt 0:00:06]} d5 {[%emt 0:00:00] White is slightly better.} 11. O-O {[%emt 0:00:14]} dxc4 {[%emt 0:00:00]} 12. Bxc4 {[%emt 0:00:06]} Nb4 {[%emt 0:00:00]} 13. Qe2 {[%emt 0:00:06]} Nc6 {[%emt 0:00:00]} 14. Qc2 {[%emt 0:00:03] White is more active.} Nb4 {[%emt 0:00:00]} 15. Qe2 {[%emt 0:00:03]} Nc6 $1 {[%emt 0:00:00]} 16. Qc2 {[%emt 0:00:03]} Nb4 {[%emt 0:00:00] Weighted Error Value: White=0.27 (precise) /Black=0.07 (flawless) .  OK:         	White=2     	---        Best:        	---       	Black=2      Strong:       	---       	Black=1} 1/2-1/2

[Event "17th Paracin Open 2024"]
[Site "Paracin"]
[Date "2024.07.06"]
[Round "4.5"]
[White "Itgelt, Khuyagtsogt"]
[Black "Antal, Gergely"]
[Result "1/2-1/2"]
[ECO "D53"]
[WhiteElo "2411"]
[BlackElo "2580"]
[Annotator "RC"]
[PlyCount "134"]
[EventDate "2024.07.02"]
[EventType "swiss"]
[EventCountry "SRB"]
[SourceTitle "playchess.com"]
[Source "ChessBase"]
[SourceQuality "1"]
[TimeControl "5400+30"]

1. Nf3 {[%emt 0:00:05]} Nf6 {[%emt 0:02:04]} 2. c4 {[%emt 0:00:13]} e6 {[%emt 0:00:41]} 3. d4 {[%emt 0:00:23]} d5 {[%emt 0:00:12]} 4. Nc3 {[%emt 0:00:15]} Be7 {[%emt 0:00:14]} 5. Bg5 {[%emt 0:00:14]} h6 {[%emt 0:00:39]} 6. Bh4 {[%emt 0:00:25]} dxc4 {[%emt 0:00:27]} 7. e3 {[%emt 0:01:30]} a6 {[%emt 0:00:10]} 8. Bxc4 {[%emt 0:01:03]} b5 {[%emt 0:00:04]} 9. Bd3 {[%emt 0:02:21]} Nbd7 {[%emt 0:00:12]} 10. a4 {[%emt 0:10:27]} b4 {[%emt 0:20:12]} 11. Ne4 {[%emt 0:01:20]} Bb7 {[%emt 0:00:07]} 12. Nxf6+ {[%emt 0:00:33]} Bxf6 {[%emt 0:00:24]} 13. Bxf6 {[%emt 0:01:34]} Qxf6 {[%emt 0:08:45]} 14. Rc1 {[%emt 0:02:29]} c5 {[%emt 0:05:03]} 15. dxc5 {[%emt 0:00:45]} Rc8 {[%emt 0:00:04]} 16. c6 {[%emt 0:03:36]} Rxc6 {[%emt 0:00:07]} 17. Rxc6 {[%emt 0:10:29]} Bxc6 {[%emt 0:00:10]} 18. Qc2 {[%emt 0:03:34]} Bxf3 {[%emt 0:02:53]} 19. gxf3 {[%emt 0:07:08]} O-O {[%emt 0:00:15]} 20. Bxa6 {[%emt 0:01:03]} Qxf3 {[%emt 0:23:43]} 21. O-O {[%emt 0:00:37]} Qg4+ {[%emt 0:02:42]} 22. Kh1 {[%emt 0:01:52]} b3 {[%emt 0:08:43]} 23. Qxb3 {[%emt 0:10:13]} Qf3+ {[%emt 0:00:49]} 24. Kg1 {[%emt 0:01:14]} Nc5 {[%emt 0:00:46]} 25. Qc4 {[%emt 0:00:59]} Nxa6 {[%emt 0:00:10]} 26. Qxa6 {[%emt 0:00:05]} Rb8 {[%emt 0:09:35]} 27. Qd6 {[%emt 0:06:48]} Rxb2 {[%emt 0:00:55]} 28. Qg3 {[%emt 0:01:21]} Qe4 {[%emt 0:01:17]} 29. Ra1 {[%emt 0:03:32]} Rb1+ {[%emt 0:00:07]} 30. Rxb1 {[%emt 0:00:05]} Qxb1+ {[%emt 0:00:02]} 31. Kg2 {[%emt 0:00:06]} Qe4+ {[%emt 0:00:03]} 32. Qf3 {[%emt 0:02:32]} Qxa4 {[%emt 0:00:01]} 33. h3 {[%emt 0:01:29]} Qa5 {[%emt 0:00:33]} 34. Qe2 {[%emt 0:01:03]} Qg5+ {[%emt 0:00:19]} 35. Kh2 {[%emt 0:00:20]} Qe5+ {[%emt 0:00:51]} 36. Kg2 {[%emt 0:00:14]} f5 {[%emt 0:00:46]} 37. Kg1 {[%emt 0:04:53]} Kh7 {[%emt 0:00:28]} 38. Kg2 {[%emt 0:01:37]} Qd5+ {[%emt 0:00:37]} 39. Kg1 {[%emt 0:01:23]} Qe4 {[%emt 0:00:42]} 40. f4 {[%emt 0:02:42]} e5 {[%emt 0:03:44]} 41. fxe5 {[%emt 0:00:28]} Qxe5 {[%emt 0:00:02]} 42. Qf2 {[%emt 0:00:34]} Qe4 {[%emt 0:00:22]} 43. Kh2 {[%emt 0:00:34]} g5 {[%emt 0:00:47]} 44. Qd2 {[%emt 0:01:17]} Qe5+ {[%emt 0:01:29]} 45. Kg2 {[%emt 0:00:10]} Kg6 {[%emt 0:00:07]} 46. Qe2 {[%emt 0:00:44]} Qe4+ {[%emt 0:01:53]} 47. Kh2 {[%emt 0:01:00]} Qe5+ {[%emt 0:03:03]} 48. Kg2 {[%emt 0:00:22]} Qd5+ {[%emt 0:00:33]} 49. Kg1 {[%emt 0:01:00]} Qe6 {[%emt 0:00:30]} 50. Kg2 {[%emt 0:00:40]} h5 {[%emt 0:00:14]} 51. Kf2 {[%emt 0:04:59]} h4 {[%emt 0:00:44]} 52. Qd3 {[%emt 0:06:42]} Qe5 {[%emt 0:03:05]} 53. Qa6+ {[%emt 0:00:03]} Kh5 {[%emt 0:00:28]} 54. Qe2+ {[%emt 0:00:07]} g4 {[%emt 0:00:10]} 55. Kf1 {[%emt 0:00:52]} Kg5 {[%emt 0:00:57]} 56. Qd2 {[%emt 0:02:29]} Kh5 {[%emt 0:01:38]} 57. Qe2 {[%emt 0:01:34]} Kg5 {[%emt 0:02:15]} 58. Qd2 {[%emt 0:00:03]} gxh3 {[%emt 0:00:32]} 59. e4+ {[%emt 0:01:03]} f4 {[%emt 0:00:18]} 60. Qd8+ {[%emt 0:00:15]} Kg4 {[%emt 0:00:47]} 61. Qc8+ {[%emt 0:01:08]} Kg3 {[%emt 0:00:22]} 62. Qg8+ {[%emt 0:00:05]} Kf3 {[%emt 0:00:06]} 63. Qb3+ {[%emt 0:00:10]} Kxe4 {[%emt 0:00:25]} 64. Qc4+ {[%emt 0:02:57]} Kf3 {[%emt 0:01:09]} 65. Qd3+ {[%emt 0:00:36]} Qe3 {[%emt 0:00:27]} 66. Qd1+ {[%emt 0:00:32]} Ke4 {[%emt 0:00:25]} 67. Qd5+ {[%emt 0:00:02]} Kxd5 {[%emt 0:00:08]} 1/2-1/2

[Event "17th Paracin Open 2024"]
[Site "Paracin"]
[Date "2024.07.06"]
[Round "4.6"]
[White "Narayanan, Srinath"]
[Black "Tanriverdi, Enes"]
[Result "1/2-1/2"]
[ECO "E62"]
[WhiteElo "2533"]
[BlackElo "2371"]
[Annotator "TA"]
[PlyCount "80"]
[EventDate "2024.07.02"]
[EventType "swiss"]
[EventCountry "SRB"]
[SourceTitle "playchess.com"]
[Source "ChessBase"]
[SourceQuality "1"]
[TimeControl "5400+30"]

{[%evp 23,80,43,78,-43,-42,-40,-41,-89,-85,-94,-86,-91,-35,-75,-77,-76,-80,-138,-43,-34,-40,-37,0,0,65,63,57,0,81,-42,-31,-143,-145,-105,0,0,123,40,524,516,485,486,477,-20,-10,-53,0,0,0,0,0,0,0,0,0,0,0,0,0]} 1. d4 {[%emt 0:00:19]} Nf6 {[%emt 0:00:26]} 2. c4 {[%emt 0:00:08]} g6 {[%emt 0:00:04]} 3. g3 {[%emt 0:00:06]} Bg7 {[%emt 0:00:04]} 4. Bg2 {[%emt 0:00:05]} O-O {[%emt 0:01:27]} 5. Nc3 {[%emt 0:00:07]} d6 {[%emt 0:01:03]} 6. Nf3 {[%emt 0:00:31]} Nc6 {[%emt 0:00:25]} 7. d5 {[%emt 0:02:23]} Na5 {[%emt 0:01:59]} 8. b3 $1 {[%emt 0:01:00][%mdl 4] is recently more successful than 8.Nd2.} c5 {[%emt 0:01:31] E62: King's Indian: Fianchetto: 6...c6 and Panno Variation (6...Nc6) without ...a6.} 9. Bb2 {[%emt 0:00:34]} a6 {[%emt 0:00:37]} 10. O-O {[%emt 0:00:10]} b5 {[%emt 0:01:03]} 11. cxb5 {[%emt 0:00:40]} axb5 {[%emt 0:00:07]} 12. Nxb5 {[%emt 0:00:06]} Qb6 {[%emt 0:11:40]} 13. Nc3 {[%emt 0:02:56]} (13. Na3 $16) 13... Nc4 $1 $15 {[%emt 0:07:42]} 14. Bc1 {[%emt 0:00:56]} Qb4 {[%emt 0:00:53]} 15. Nb1 $146 {[%emt 0:27:26]} (15. Bd2 $15 {might be stronger.} Nxd2 16. Qxd2) ({Predecessor:} 15. Qd3 Ng4 16. bxc4 Qxc3 17. Rb1 Qxd3 18. exd3 Bf5 19. Rb3 Rxa2 20. h3 Ne5 21. Nxe5 Bxe5 {0-1 Cernousek,L (2460)-Chigaev,M (2588) Titled Tuesday intern op 19th May blitz 2020 (2)}) 15... Ne4 $1 $17 {[%emt 0:07:31]} 16. a3 {[%emt 0:00:49]} Qb6 {[%emt 0:02:37]} 17. Ra2 {[%emt 0:00:20]} Bf5 {[%emt 0:02:02]} ({Black should play} 17... Rb8 $17 18. Ne5 Bxe5 (18... Nxe5 19. Bxe4 Qxb3 20. Qxb3 $15) 19. Bxe4 Qxb3 20. Qxb3 Rxb3) 18. Bf4 {[%emt 0:17:09]} Nb2 $1 {[%emt 0:00:41]} 19. Rxb2 {[%emt 0:01:14]} (19. Qc2 $2 Nxg3 $19) 19... Bxb2 {[%emt 0:00:02]} 20. Nh4 {[%emt 0:00:08] [#]} (20. g4 $142 Bxg4 21. Qc2) 20... Nxf2 {[%emt 0:00:58]} (20... Bxa3 $6 21. Nxf5 (21. g4 $2 Nxf2 22. Kxf2 Bxb1 $17) 21... gxf5 22. Bh6 $11) (20... Rfb8 $1 $17 {[%mdl 512]} 21. Nxf5 gxf5) 21. Rxf2 $15 {[%emt 0:02:19]} Bxb1 {[%emt 0:00:10]} (21... Bxa3 $2 22. Nxf5 gxf5 23. Qc2 $18) 22. Qxb1 {[%emt 0:00:04]} Qxb3 {[%emt 0:00:28]} (22... Bf6 $5 23. Bc1 c4 $17) 23. Nf5 $1 {[%emt 0:18:11]} (23. Bc1 Rfb8 24. Bxb2 Qxb2 $17) 23... Rxa3 {[%emt 0:13:52]} (23... gxf5 $11 24. e3 Rab8 25. Qxf5 Qc3 (25... Qxa3 26. Be4 Qa1+ 27. Rf1 Rfc8 28. Bh6)) 24. Nxe7+ $14 {[%emt 0:01:41]} Kg7 {[%emt 0:01:34]} 25. Qe4 {[%emt 0:00:28]} (25. Bxd6 $2 Ra1 $19) (25. Rf1 $1 $14) 25... Ra4 {[%emt 0:02:47] [#]} (25... Bd4 $11 {remains equal.} 26. Bxd6 Qd1+ 27. Bf1 f6) 26. Nf5+ {[%emt 0:03:25]} ({Only move:} 26. Qf3 $1 $16 {[%cal Rf3b3]} Ra1+ 27. Bf1 Qxf3 28. Rxf3) 26... gxf5 $15 {[%emt 0:00:34]} 27. Qe7 {[%emt 0:00:01]} (27. Qxf5 $15 Ra1+ 28. Bf1) 27... Ra1+ $17 {[%emt 0:02:28]} 28. Bf1 {[%emt 0:00:20]} Raa8 {[%emt 0:09:04]} (28... Qxd5 $17 {White must now prevent ...Qe6.} 29. e4 Qxe4 30. Qxe4 (30. Qg5+ $2 Kh8 $19) 30... fxe4 31. Rxb2 d5 32. Be5+ Kg8) 29. e3 $11 {[%emt 0:02:53]} Bf6 {[%emt 0:03:49]} (29... Be5 $11 30. Bxe5+ dxe5 31. Qg5+ Kh8 32. Qf6+ Kg8 33. Qg5+ Kh8 34. Qf6+ Kg8) 30. Qxd6 {[%emt 0:02:34]} ({Better is} 30. Bh6+ $1 $16 Kg6 (30... Kxh6 31. Qxf6+ Kh5 32. Be2#) 31. Qxd6) 30... Rfd8 $2 {[%emt 0:00:45][%mdl 8192] [#]} (30... Rg8 $14) 31. Bh6+ $1 $18 {[%emt 0:00:06]} Kg6 {[%emt 0:00:04]} 32. Qf4 {[%emt 0:00:02]} Qxd5 {[%emt 0:00:54] [#]} 33. g4 $2 {[%emt 0:04:26]} (33. h4 $1 $18 {[%cal Rh4h5] White wants to mate with h5+!} Ra2 34. h5+ Kxh5 35. Rxa2 (35. Qxf5+ $2 Qxf5 36. Rxf5+ Kg6 $19) 35... Qxa2 36. Qxf5+ Kxh6 37. Qxf6+ Kh5 38. Qxd8) 33... Ra1 $11 {[%emt 0:02:00]} 34. Rf3 $1 {[%emt 0:00:31]} ({Don't go for} 34. e4 $2 Rxf1+ (34... Qxe4 $2 {is the wrong capture.} 35. gxf5+ Kh5 36. Qxe4 $18) 35. Rxf1 Bd4+ (35... fxe4 36. Qxf6#) 36. Kg2 Qxe4+ (36... fxe4 $2 37. h4 $19) 37. Qxe4 fxe4 $19) 34... Rg8 {[%emt 0:03:05]} (34... Qxf3 $1 $15 35. Qxf3 fxg4 (35... Kxh6 36. Qxf5 Kg7 37. g5 $11) 36. Qxg4+ Kxh6) 35. Rg3 $11 {[%emt 0:04:05]} Rxf1+ {[%emt 0:00:43]} 36. Kxf1 {[%emt 0:00:04]} Qd3+ {[%emt 0:01:14]} 37. Kg1 {[%emt 0:02:52]} Qb1+ {[%emt 0:00:16]} 38. Kf2 {[%emt 0:00:04]} Qc2+ {[%emt 0:04:01]} 39. Kg1 {[%emt 0:00:54]} Qb1+ {[%emt 0:00:37]} 40. Kf2 {[%emt 0:00:02]} Qc2+ {[%emt 0:02:03]} 1/2-1/2